[Event "*** SCC Grand Prix: Titled Tuesday Blitz"]
[Site "Chess.com"]
[Date "2020.06.02"]
[Round "9"]
[White "PavlovDanila"]
[Black "Maghalashvili"]
[Result "1-0"]
[WhiteElo "2649"]
[BlackElo "2775"]
[TimeControl "180+1"]
[EndTime "11:47:57 PDT"]
[Termination "PavlovDanila won on time"]

1. e4 {[%clk 0:03:00.9]} 1... c5 {[%clk 0:02:59.5]} 2. Nf3 {[%clk 0:03:01]} 2...
d6 {[%clk 0:02:59.9]} 3. d4 {[%clk 0:03:01.2]} 3... cxd4 {[%clk 0:03:00.8]} 4.
Nxd4 {[%clk 0:03:01.9]} 4... Nf6 {[%clk 0:03:01.1]} 5. Nc3 {[%clk 0:03:02.4]}
5... a6 {[%clk 0:03:01.8]} 6. Be3 {[%clk 0:03:02.6]} 6... e5 {[%clk 0:03:01.8]}
7. Nb3 {[%clk 0:03:02.7]} 7... Be6 {[%clk 0:03:01.8]} 8. Qd2 {[%clk 0:03:02.9]}
8... Nbd7 {[%clk 0:03:00.7]} 9. O-O-O {[%clk 0:03:03.2]} 9... Be7 {[%clk
0:02:59.7]} 10. f4 {[%clk 0:03:03.3]} 10... Rc8 {[%clk 0:02:56.8]} 11. f5 {[%clk
0:03:02.4]} 11... Bc4 {[%clk 0:02:56.9]} 12. g4 {[%clk 0:03:02.5]} 12... Nxg4
{[%clk 0:02:54.2]} 13. Rg1 {[%clk 0:03:02.5]} 13... Nxe3 {[%clk 0:02:35.3]} 14.
Qxe3 {[%clk 0:03:03.4]} 14... Bxf1 {[%clk 0:02:35.7]} 15. Rdxf1 {[%clk
0:03:03.1]} 15... h6 {[%clk 0:02:29]} 16. Kb1 {[%clk 0:03:02.6]} 16... Bg5
{[%clk 0:02:24.6]} 17. Qd3 {[%clk 0:03:02.4]} 17... Qc7 {[%clk 0:02:05.9]} 18.
Rd1 {[%clk 0:02:58.3]} 18... Nf6 {[%clk 0:01:54.4]} 19. Qxd6 {[%clk 0:02:07.2]}
19... Qxd6 {[%clk 0:01:53.4]} 20. Rxd6 {[%clk 0:02:08.1]} 20... Rxc3 {[%clk
0:01:47.8]} 21. bxc3 {[%clk 0:02:01.8]} 21... Nxe4 {[%clk 0:01:47.6]} 22. Rd3
{[%clk 0:01:00.6]} 22... Bf4 {[%clk 0:01:39.4]} 23. Re1 {[%clk 0:00:57.3]} 23...
Nf6 {[%clk 0:01:32.9]} 24. Nc5 {[%clk 0:00:54.9]} 24... O-O {[%clk 0:01:31.3]}
25. Ne4 {[%clk 0:00:54.8]} 25... Nxe4 {[%clk 0:01:25.8]} 26. Rxe4 {[%clk
0:00:55.7]} 26... Bxh2 {[%clk 0:01:25.3]} 27. Rd7 {[%clk 0:00:55.5]} 27... b5
{[%clk 0:01:21.2]} 28. Ra7 {[%clk 0:00:54.8]} 28... Rc8 {[%clk 0:01:16.8]} 29.
Rxa6 {[%clk 0:00:53.9]} 29... Rxc3 {[%clk 0:01:15.4]} 30. Ra5 {[%clk 0:00:50.9]}
30... Bf4 {[%clk 0:01:04.2]} 31. Rxb5 {[%clk 0:00:49.6]} 31... h5 {[%clk
0:01:04.2]} 32. Kb2 {[%clk 0:00:46.7]} 32... Rc6 {[%clk 0:00:59.9]} 33. a4
{[%clk 0:00:43.7]} 33... h4 {[%clk 0:01:00]} 34. Rb3 {[%clk 0:00:43.3]} 34... g6
{[%clk 0:00:41.5]} 35. fxg6 {[%clk 0:00:42.9]} 35... f5 {[%clk 0:00:41.7]} 36.
Reb4 {[%clk 0:00:41.5]} 36... Kg7 {[%clk 0:00:33.3]} 37. a5 {[%clk 0:00:40.7]}
37... e4 {[%clk 0:00:19.5]} 38. Rb7+ {[%clk 0:00:33.2]} 38... Kxg6 {[%clk
0:00:18.7]} 39. R3b6 {[%clk 0:00:33]} 39... Rxb6+ {[%clk 0:00:18.3]} 40. Rxb6+
{[%clk 0:00:32.2]} 40... Kg5 {[%clk 0:00:18]} 41. a6 {[%clk 0:00:26.6]} 41... h3
{[%clk 0:00:14.5]} 42. a7 {[%clk 0:00:15.7]} 42... h2 {[%clk 0:00:13.1]} 43.
a8=Q {[%clk 0:00:13.6]} 43... Be5+ {[%clk 0:00:13.2]} 44. Ka2 {[%clk 0:00:13.6]}
44... h1=Q {[%clk 0:00:12.9]} 45. Qd8+ {[%clk 0:00:10]} 45... Kf4 {[%clk
0:00:10.7]} 46. Qd2+ {[%clk 0:00:09.8]} 46... e3 {[%clk 0:00:07.3]} 47. Rb4+
{[%clk 0:00:08.6]} 47... Kg5 {[%clk 0:00:03.4]} 48. Qxe3+ {[%clk 0:00:08.6]} 1-0

[Event "*** SCC Grand Prix: Titled Tuesday Blitz"]
[Site "Chess.com"]
[Date "2020.06.02"]
[Round "9"]
[White "gui_borba"]
[Black "djano"]
[Result "1-0"]
[WhiteElo "2327"]
[BlackElo "2408"]
[TimeControl "180+1"]
[EndTime "11:47:59 PDT"]
[Termination "gui_borba won by resignation"]

1. d4 {[%clk 0:03:00.9]} 1... Nf6 {[%clk 0:02:59.3]} 2. Bf4 {[%clk 0:03:01.2]}
2... Nh5 {[%clk 0:02:54.4]} 3. Bc1 {[%clk 0:02:56.8]} 3... g6 {[%clk 0:02:52.1]}
4. e4 {[%clk 0:02:56.7]} 4... Bg7 {[%clk 0:02:50.3]} 5. Nc3 {[%clk 0:02:56.9]}
5... c5 {[%clk 0:02:50.4]} 6. d5 {[%clk 0:02:55.6]} 6... d6 {[%clk 0:02:50.5]}
7. Be2 {[%clk 0:02:54.7]} 7... Nf6 {[%clk 0:02:49.6]} 8. Nf3 {[%clk 0:02:55.2]}
8... O-O {[%clk 0:02:47.4]} 9. O-O {[%clk 0:02:54.9]} 9... e6 {[%clk 0:02:38.1]}
10. a4 {[%clk 0:02:54.3]} 10... exd5 {[%clk 0:02:37.2]} 11. exd5 {[%clk
0:02:55.2]} 11... Bg4 {[%clk 0:02:36.7]} 12. Nd2 {[%clk 0:02:50.1]} 12... Bxe2
{[%clk 0:02:31.3]} 13. Qxe2 {[%clk 0:02:51]} 13... Nbd7 {[%clk 0:02:29.8]} 14.
Nc4 {[%clk 0:02:50.4]} 14... Re8 {[%clk 0:02:26.3]} 15. Qd3 {[%clk 0:02:50.4]}
15... Nb6 {[%clk 0:02:22.8]} 16. Nxb6 {[%clk 0:02:45.5]} 16... Qxb6 {[%clk
0:02:23.7]} 17. h3 {[%clk 0:02:38.9]} 17... Nd7 {[%clk 0:02:21.4]} 18. a5 {[%clk
0:02:26.1]} 18... Qc7 {[%clk 0:02:14.8]} 19. a6 {[%clk 0:02:05.3]} 19... c4
{[%clk 0:02:11.3]} 20. Qg3 {[%clk 0:02:00.1]} 20... bxa6 {[%clk 0:01:18.4]} 21.
Rxa6 {[%clk 0:02:01]} 21... Qc5 {[%clk 0:01:18.6]} 22. Qxd6 {[%clk 0:01:52.6]}
22... Qc8 {[%clk 0:01:16]} 23. Rc6 {[%clk 0:01:45.4]} 23... Qd8 {[%clk
0:01:16.2]} 24. Bf4 {[%clk 0:01:32]} 24... a5 {[%clk 0:01:06.4]} 25. Nb5 {[%clk
0:01:26.2]} 25... Ne5 {[%clk 0:00:56.9]} 26. Nc7 {[%clk 0:00:53.5]} 26... Nxc6
{[%clk 0:00:49.7]} 27. Qxc6 {[%clk 0:00:54.4]} 27... Bxb2 {[%clk 0:00:42.4]} 28.
d6 {[%clk 0:00:38.1]} 28... Rb8 {[%clk 0:00:28.5]} 29. Nxe8 {[%clk 0:00:36.2]}
29... Rb6 {[%clk 0:00:19.7]} 30. Qc7 {[%clk 0:00:33.6]} 30... Rb8 {[%clk
0:00:18]} 31. Qxd8 {[%clk 0:00:25.6]} 31... Rxd8 {[%clk 0:00:18.9]} 32. Rd1
{[%clk 0:00:26.1]} 32... a4 {[%clk 0:00:18]} 33. Bg5 {[%clk 0:00:22.6]} 33... f6
{[%clk 0:00:12.5]} 34. Nxf6+ {[%clk 0:00:20.5]} 34... Kf7 {[%clk 0:00:09.8]} 35.
Ne4 {[%clk 0:00:18]} 35... Rd7 {[%clk 0:00:07]} 36. Nc5 {[%clk 0:00:18]} 36...
Ke8 {[%clk 0:00:06.3]} 37. Nxd7 {[%clk 0:00:17.6]} 37... Kxd7 {[%clk 0:00:07.2]}
38. Bc1 {[%clk 0:00:16.7]} 38... c3 {[%clk 0:00:06.6]} 39. Bf4 {[%clk
0:00:08.6]} 39... a3 {[%clk 0:00:06.3]} 40. Kf1 {[%clk 0:00:09]} 40... a2 {[%clk
0:00:05.6]} 41. Ke2 {[%clk 0:00:09]} 41... a1=Q {[%clk 0:00:05.3]} 42. Rxa1
{[%clk 0:00:09.5]} 42... Bxa1 {[%clk 0:00:06.2]} 43. Kd3 {[%clk 0:00:10.4]}
43... Bb2 {[%clk 0:00:06.1]} 44. Be5 {[%clk 0:00:09.6]} 44... Ba3 {[%clk
0:00:05.3]} 45. Kxc3 {[%clk 0:00:07.8]} 45... Ke6 {[%clk 0:00:05.6]} 46. Bg3
{[%clk 0:00:06.6]} 46... Bc5 {[%clk 0:00:05.7]} 47. Kc4 {[%clk 0:00:06.4]} 47...
Ba3 {[%clk 0:00:05.2]} 48. Kb5 {[%clk 0:00:06.4]} 48... Kd7 {[%clk 0:00:03.5]}
49. c4 {[%clk 0:00:06.7]} 1-0

[Event "*** SCC Grand Prix: Titled Tuesday Blitz"]
[Site "Chess.com"]
[Date "2020.06.02"]
[Round "9"]
[White "MNyuyu"]
[Black "IngOscarArdila"]
[Result "1-0"]
[WhiteElo "2271"]
[BlackElo "2094"]
[TimeControl "180+1"]
[EndTime "11:48:00 PDT"]
[Termination "MNyuyu won on time"]

1. d4 {[%clk 0:03:00.9]} 1... Nf6 {[%clk 0:02:59.4]} 2. Nf3 {[%clk 0:03:00.9]}
2... g6 {[%clk 0:02:59.5]} 3. Bf4 {[%clk 0:03:00.2]} 3... d6 {[%clk 0:02:59.5]}
4. e3 {[%clk 0:03:00.5]} 4... Bg7 {[%clk 0:02:59.9]} 5. Be2 {[%clk 0:03:00.4]}
5... Nbd7 {[%clk 0:03:00.4]} 6. h3 {[%clk 0:03:00.8]} 6... O-O {[%clk
0:03:00.9]} 7. O-O {[%clk 0:03:00.8]} 7... b6 {[%clk 0:02:58.9]} 8. c3 {[%clk
0:03:00.4]} 8... Bb7 {[%clk 0:02:59.4]} 9. Nbd2 {[%clk 0:03:00.7]} 9... Ne4
{[%clk 0:02:56.9]} 10. Nxe4 {[%clk 0:02:59.6]} 10... Bxe4 {[%clk 0:02:56.6]} 11.
Nd2 {[%clk 0:02:59]} 11... Bb7 {[%clk 0:02:56.5]} 12. Bf3 {[%clk 0:02:57.8]}
12... Bxf3 {[%clk 0:02:56.3]} 13. Nxf3 {[%clk 0:02:55.6]} 13... Nf6 {[%clk
0:02:56.8]} 14. Bh2 {[%clk 0:02:54.6]} 14... Qd7 {[%clk 0:02:55.1]} 15. Qc2
{[%clk 0:02:53.8]} 15... c6 {[%clk 0:02:53.8]} 16. e4 {[%clk 0:02:53.6]} 16...
d5 {[%clk 0:02:51.9]} 17. exd5 {[%clk 0:02:48.7]} 17... cxd5 {[%clk 0:02:51.7]}
18. Rfe1 {[%clk 0:02:48.2]} 18... Ne4 {[%clk 0:02:48.4]} 19. Be5 {[%clk
0:02:44.6]} 19... f6 {[%clk 0:02:46.3]} 20. Bh2 {[%clk 0:02:43.9]} 20... Rac8
{[%clk 0:02:43.4]} 21. Qd3 {[%clk 0:02:42.6]} 21... e6 {[%clk 0:02:09.7]} 22.
Re2 {[%clk 0:02:41.7]} 22... b5 {[%clk 0:02:05.3]} 23. a3 {[%clk 0:02:40.4]}
23... a6 {[%clk 0:02:05]} 24. Rae1 {[%clk 0:02:39.3]} 24... Rfe8 {[%clk
0:02:02.8]} 25. Nd2 {[%clk 0:02:23.1]} 25... Nd6 {[%clk 0:02:02.2]} 26. Nb3
{[%clk 0:02:21.1]} 26... Nc4 {[%clk 0:02:00]} 27. Nc5 {[%clk 0:02:19.2]} 27...
Rxc5 {[%clk 0:01:55.7]} 28. dxc5 {[%clk 0:02:18.7]} 28... Qc6 {[%clk 0:01:54.8]}
29. Bd6 {[%clk 0:02:17.7]} 29... Nxd6 {[%clk 0:01:51.9]} 30. Rxe6 {[%clk
0:02:12.7]} 30... Rxe6 {[%clk 0:01:45]} 31. Rxe6 {[%clk 0:02:11.6]} 31... Qxc5
{[%clk 0:01:45.4]} 32. b4 {[%clk 0:02:02.9]} 32... Qc6 {[%clk 0:01:35.3]} 33.
Qg3 {[%clk 0:01:59.9]} 33... Bf8 {[%clk 0:01:30.6]} 34. Rxf6 {[%clk 0:01:59.3]}
34... Be7 {[%clk 0:01:25.8]} 35. Re6 {[%clk 0:01:58.9]} 35... Qd7 {[%clk
0:01:25.4]} 36. Qe5 {[%clk 0:01:58.1]} 36... Bf8 {[%clk 0:01:25.1]} 37. Qxd5
{[%clk 0:01:57.6]} 37... Kg7 {[%clk 0:01:23.6]} 38. h4 {[%clk 0:01:52.7]} 38...
Qc7 {[%clk 0:01:20.3]} 39. h5 {[%clk 0:01:50]} 39... Nf7 {[%clk 0:01:19.8]} 40.
Qd4+ {[%clk 0:01:45.9]} 40... Kg8 {[%clk 0:01:12.6]} 41. hxg6 {[%clk 0:01:45.5]}
41... hxg6 {[%clk 0:01:11.4]} 42. Rxg6+ {[%clk 0:01:44.4]} 42... Kh7 {[%clk
0:01:10.5]} 43. Rg3 {[%clk 0:01:37.1]} 43... Nh6 {[%clk 0:01:01.8]} 44. Qe4+
{[%clk 0:01:34.7]} 44... Kh8 {[%clk 0:01:00]} 45. Qd4+ {[%clk 0:01:32]} 45...
Bg7 {[%clk 0:00:57.9]} 46. Qe4 {[%clk 0:01:25.1]} 46... Qd7 {[%clk 0:00:54.8]}
47. Qa8+ {[%clk 0:01:22.8]} 47... Kh7 {[%clk 0:00:54.4]} 48. Qxa6 {[%clk
0:01:10.1]} 48... Qd1+ {[%clk 0:00:53.8]} 49. Kh2 {[%clk 0:01:09.4]} 49... Qh5+
{[%clk 0:00:37.6]} 50. Rh3 {[%clk 0:01:08.6]} 50... Qe5+ {[%clk 0:00:31.7]} 51.
g3 {[%clk 0:01:07.1]} 51... Qxc3 {[%clk 0:00:26.4]} 52. Qxb5 {[%clk 0:01:03.9]}
52... Qf3 {[%clk 0:00:25.9]} 53. Qf1 {[%clk 0:00:49]} 53... Kg8 {[%clk
0:00:20.2]} 54. Qc4+ {[%clk 0:00:46.9]} 54... Kh7 {[%clk 0:00:18.6]} 55. Qc2+
{[%clk 0:00:46.3]} 55... Kg8 {[%clk 0:00:18.3]} 56. Kg1 {[%clk 0:00:39.4]} 56...
Ng4 {[%clk 0:00:15]} 57. Rh4 {[%clk 0:00:33.5]} 57... Ne5 {[%clk 0:00:13.5]} 58.
Qh7+ {[%clk 0:00:30.4]} 58... Kf8 {[%clk 0:00:13.1]} 59. Rf4+ {[%clk 0:00:29.3]}
59... Qxf4 {[%clk 0:00:13]} 60. gxf4 {[%clk 0:00:28.9]} 1-0

[Event "*** SCC Grand Prix: Titled Tuesday Blitz"]
[Site "Chess.com"]
[Date "2020.06.02"]
[Round "9"]
[White "RobertoJBM"]
[Black "Gordima"]
[Result "1-0"]
[WhiteElo "2648"]
[BlackElo "2761"]
[TimeControl "180+1"]
[EndTime "11:48:01 PDT"]
[Termination "RobertoJBM won on time"]

1. d4 {[%clk 0:02:59.8]} 1... d5 {[%clk 0:02:58.8]} 2. c4 {[%clk 0:02:59.7]}
2... e6 {[%clk 0:02:59.3]} 3. Nc3 {[%clk 0:02:59.1]} 3... c5 {[%clk 0:03:00]} 4.
cxd5 {[%clk 0:02:59]} 4... exd5 {[%clk 0:03:00.9]} 5. Nf3 {[%clk 0:02:59.4]}
5... Nc6 {[%clk 0:03:01]} 6. e3 {[%clk 0:02:56]} 6... Nf6 {[%clk 0:02:59.6]} 7.
Be2 {[%clk 0:02:54.2]} 7... Bd6 {[%clk 0:02:55.3]} 8. dxc5 {[%clk 0:02:51.3]}
8... Bxc5 {[%clk 0:02:55.1]} 9. O-O {[%clk 0:02:51.1]} 9... O-O {[%clk
0:02:55.7]} 10. b3 {[%clk 0:02:49.3]} 10... Qe7 {[%clk 0:02:36.2]} 11. Nxd5
{[%clk 0:02:16.2]} 11... Nxd5 {[%clk 0:02:37.1]} 12. Qxd5 {[%clk 0:02:16.7]}
12... Be6 {[%clk 0:02:37.2]} 13. Qg5 {[%clk 0:02:15.4]} 13... f6 {[%clk
0:02:34.7]} 14. Qh4 {[%clk 0:02:13.6]} 14... g5 {[%clk 0:02:32.3]} 15. Qe4
{[%clk 0:02:05.4]} 15... Rae8 {[%clk 0:02:27.9]} 16. Qxe6+ {[%clk 0:01:44.8]}
16... Qxe6 {[%clk 0:02:28.8]} 17. Bc4 {[%clk 0:01:45.6]} 17... Qxc4 {[%clk
0:02:27.9]} 18. bxc4 {[%clk 0:01:46.5]} 18... g4 {[%clk 0:02:05.3]} 19. Nd2
{[%clk 0:01:45.5]} 19... f5 {[%clk 0:02:05.3]} 20. Nb3 {[%clk 0:01:43.3]} 20...
Bd6 {[%clk 0:01:55.8]} 21. Bb2 {[%clk 0:01:38.4]} 21... f4 {[%clk 0:01:50.9]}
22. Rfd1 {[%clk 0:01:26.3]} 22... Be5 {[%clk 0:01:22.2]} 23. Bxe5 {[%clk
0:01:26]} 23... Rxe5 {[%clk 0:01:23.1]} 24. Rd7 {[%clk 0:00:29.7]} 24... fxe3
{[%clk 0:01:19.6]} 25. fxe3 {[%clk 0:00:30.6]} 25... Rxe3 {[%clk 0:01:18.7]} 26.
Rxb7 {[%clk 0:00:30.1]} 26... Re2 {[%clk 0:01:10]} 27. Rf1 {[%clk 0:00:29.7]}
27... Rxf1+ {[%clk 0:01:08.4]} 28. Kxf1 {[%clk 0:00:30.6]} 28... Rxa2 {[%clk
0:01:08.8]} 29. Nc5 {[%clk 0:00:28.4]} 29... Ne5 {[%clk 0:01:00.4]} 30. Ne4
{[%clk 0:00:25.6]} 30... Nxc4 {[%clk 0:00:53]} 31. Nf6+ {[%clk 0:00:22.5]} 31...
Kf8 {[%clk 0:00:51.9]} 32. Nxh7+ {[%clk 0:00:21.5]} 32... Ke8 {[%clk 0:00:52.5]}
33. Nf6+ {[%clk 0:00:22.2]} 33... Kd8 {[%clk 0:00:53.1]} 34. Nxg4 {[%clk
0:00:22.9]} 34... a5 {[%clk 0:00:43.3]} 35. h4 {[%clk 0:00:21.2]} 35... Nd2+
{[%clk 0:00:38.9]} 36. Kg1 {[%clk 0:00:20.4]} 36... Ra1+ {[%clk 0:00:29.2]} 37.
Kf2 {[%clk 0:00:19.9]} 37... a4 {[%clk 0:00:18.4]} 38. Ne5 {[%clk 0:00:19.2]}
38... Kc8 {[%clk 0:00:15.8]} 39. Ra7 {[%clk 0:00:19]} 39... a3 {[%clk
0:00:12.6]} 40. h5 {[%clk 0:00:19.1]} 40... a2 {[%clk 0:00:09.6]} 41. Ke2 {[%clk
0:00:18.6]} 41... Ne4 {[%clk 0:00:04.8]} 42. h6 {[%clk 0:00:18.1]} 42... Nc3+
{[%clk 0:00:02.7]} 43. Kd3 {[%clk 0:00:16.7]} 43... Rd1+ {[%clk 0:00:02.4]} 44.
Kxc3 {[%clk 0:00:16.8]} 44... a1=Q+ {[%clk 0:00:02.6]} 45. Rxa1 {[%clk
0:00:17.4]} 45... Rxa1 {[%clk 0:00:03.5]} 46. g4 {[%clk 0:00:15.7]} 46... Rh1
{[%clk 0:00:04.4]} 47. g5 {[%clk 0:00:15.6]} 47... Kc7 {[%clk 0:00:03.5]} 48.
Kd4 {[%clk 0:00:15.6]} 48... Kd6 {[%clk 0:00:03.3]} 49. Ke4 {[%clk 0:00:05.2]}
49... Ke6 {[%clk 0:00:03.3]} 50. Ng4 {[%clk 0:00:04.8]} 50... Rh4 {[%clk
0:00:02.3]} 51. Kf4 {[%clk 0:00:05.7]} 51... Rh1 {[%clk 0:00:02.1]} 52. g6
{[%clk 0:00:06.1]} 52... Rf1+ {[%clk 0:00:01.3]} 53. Kg5 {[%clk 0:00:07]} 53...
Rf5+ {[%clk 0:00:01.5]} 54. Kh4 {[%clk 0:00:07.7]} 54... Rf1 {[%clk 0:00:01.9]}
55. h7 {[%clk 0:00:08.1]} 55... Rh1+ {[%clk 0:00:01.4]} 56. Kg5 {[%clk 0:00:09]}
1-0

[Event "*** SCC Grand Prix: Titled Tuesday Blitz"]
[Site "Chess.com"]
[Date "2020.06.02"]
[Round "9"]
[White "Kildepiotr"]
[Black "ChronicUnhappiness"]
[Result "1-0"]
[WhiteElo "2467"]
[BlackElo "2316"]
[TimeControl "180+1"]
[EndTime "11:48:01 PDT"]
[Termination "Kildepiotr won by resignation"]

1. Nf3 {[%clk 0:03:00.9]} 1... Nf6 {[%clk 0:02:59.5]} 2. g3 {[%clk 0:03:01.1]}
2... b5 {[%clk 0:02:59]} 3. Bg2 {[%clk 0:03:01.4]} 3... Bb7 {[%clk 0:02:59.4]}
4. O-O {[%clk 0:03:02.1]} 4... e6 {[%clk 0:02:59.7]} 5. d3 {[%clk 0:03:02.4]}
5... c5 {[%clk 0:02:59.4]} 6. Nbd2 {[%clk 0:03:02.4]} 6... Be7 {[%clk 0:02:59]}
7. a4 {[%clk 0:03:02.4]} 7... b4 {[%clk 0:02:58.2]} 8. e4 {[%clk 0:03:01.9]}
8... a5 {[%clk 0:02:55.5]} 9. e5 {[%clk 0:03:01.7]} 9... Nd5 {[%clk 0:02:49.2]}
10. Nc4 {[%clk 0:03:01.8]} 10... O-O {[%clk 0:02:40]} 11. h4 {[%clk 0:03:01.4]}
11... f6 {[%clk 0:02:26.4]} 12. exf6 {[%clk 0:02:57.5]} 12... Nxf6 {[%clk
0:02:23.9]} 13. Bg5 {[%clk 0:02:51.1]} 13... Nc6 {[%clk 0:02:08.3]} 14. Re1
{[%clk 0:02:48.9]} 14... h6 {[%clk 0:01:56.5]} 15. Bf4 {[%clk 0:02:45.5]} 15...
Nd5 {[%clk 0:01:53.9]} 16. Bd6 {[%clk 0:02:41.6]} 16... Nd4 {[%clk 0:01:47.9]}
17. Nxd4 {[%clk 0:02:39.6]} 17... cxd4 {[%clk 0:01:47.4]} 18. Qh5 {[%clk
0:02:28.9]} 18... Nf6 {[%clk 0:01:13.8]} 19. Qc5 {[%clk 0:02:10]} 19... Bxd6
{[%clk 0:01:10.1]} 20. Qxd6 {[%clk 0:02:09.9]} 20... Bxg2 {[%clk 0:01:09.2]} 21.
Kxg2 {[%clk 0:02:10.8]} 21... Nd5 {[%clk 0:01:06.7]} 22. Qe5 {[%clk 0:02:02.8]}
22... Qf6 {[%clk 0:00:55.7]} 23. Qxf6 {[%clk 0:02:02.7]} 23... Rxf6 {[%clk
0:00:56.2]} 24. Re4 {[%clk 0:02:00.2]} 24... Raf8 {[%clk 0:00:53.1]} 25. f4
{[%clk 0:02:00]} 25... g5 {[%clk 0:00:53.1]} 26. hxg5 {[%clk 0:01:55.7]} 26...
hxg5 {[%clk 0:00:52.4]} 27. Ne5 {[%clk 0:01:44.8]} 27... Rf5 {[%clk 0:00:25.4]}
28. Nxd7 {[%clk 0:01:39.1]} 28... R8f7 {[%clk 0:00:20.7]} 29. Ne5 {[%clk
0:01:37]} 29... Ne3+ {[%clk 0:00:19.2]} 30. Rxe3 {[%clk 0:01:35.3]} 30... dxe3
{[%clk 0:00:18.4]} 31. Nxf7 {[%clk 0:01:35.5]} 31... Kxf7 {[%clk 0:00:19.2]} 32.
Kf3 {[%clk 0:01:30.4]} 32... gxf4 {[%clk 0:00:18.1]} 33. gxf4 {[%clk 0:01:30.3]}
33... e5 {[%clk 0:00:18.3]} 34. Kxe3 {[%clk 0:01:30.1]} 34... Rxf4 {[%clk
0:00:18]} 35. Rh1 {[%clk 0:01:26.1]} 35... Rg4 {[%clk 0:00:18]} 36. Rh6 {[%clk
0:01:17.4]} 36... Rg2 {[%clk 0:00:17.9]} 37. Rc6 {[%clk 0:01:17]} 37... Ke7
{[%clk 0:00:18.1]} 38. Ke4 {[%clk 0:01:15.7]} 38... Re2+ {[%clk 0:00:17.7]} 39.
Kd5 {[%clk 0:01:15.5]} 39... Kd7 {[%clk 0:00:17.8]} 40. Rc5 {[%clk 0:01:12.8]}
40... Ke7 {[%clk 0:00:13.3]} 41. b3 {[%clk 0:01:12.3]} 41... Kd7 {[%clk
0:00:12.5]} 42. Rxa5 {[%clk 0:01:10.2]} 42... Rxc2 {[%clk 0:00:12]} 43. Ra7+
{[%clk 0:01:08.4]} 43... Kc8 {[%clk 0:00:11.6]} 44. Ra5 {[%clk 0:00:55.5]} 44...
Rc3 {[%clk 0:00:10.4]} 45. Rc5+ {[%clk 0:00:47.9]} 45... Kd7 {[%clk 0:00:10.5]}
46. Rb5 {[%clk 0:00:25.1]} 46... Rxb3 {[%clk 0:00:09]} 47. Kc4 {[%clk 0:00:25]}
47... Rc3+ {[%clk 0:00:06.8]} 48. Kxb4 {[%clk 0:00:25]} 48... Rxd3 {[%clk
0:00:07.1]} 49. Rxe5 {[%clk 0:00:25]} 49... Kc7 {[%clk 0:00:07.3]} 50. Kb5
{[%clk 0:00:23.8]} 50... Rb3+ {[%clk 0:00:07]} 51. Ka6 {[%clk 0:00:23.8]} 51...
Rb1 {[%clk 0:00:07.3]} 52. Rc5+ {[%clk 0:00:21.2]} 52... Kb8 {[%clk 0:00:06.7]}
53. Rb5+ {[%clk 0:00:21.3]} 53... Rxb5 {[%clk 0:00:05.2]} 54. axb5 {[%clk
0:00:22.2]} 54... Ka8 {[%clk 0:00:05.7]} 55. b6 {[%clk 0:00:21.9]} 55... Kb8
{[%clk 0:00:05.1]} 56. b7 {[%clk 0:00:22.3]} 1-0

[Event "*** SCC Grand Prix: Titled Tuesday Blitz"]
[Site "Chess.com"]
[Date "2020.06.02"]
[Round "9"]
[White "Parkas"]
[Black "Marty435"]
[Result "0-1"]
[WhiteElo "2321"]
[BlackElo "2442"]
[TimeControl "180+1"]
[EndTime "11:48:01 PDT"]
[Termination "Marty435 won by resignation"]

1. c4 {[%clk 0:03:00.9]} 1... Nf6 {[%clk 0:02:59.9]} 2. g3 {[%clk 0:02:59.1]}
2... e6 {[%clk 0:02:59.8]} 3. Bg2 {[%clk 0:02:57.9]} 3... d5 {[%clk 0:02:59.9]}
4. Nf3 {[%clk 0:02:58.5]} 4... c5 {[%clk 0:03:00]} 5. O-O {[%clk 0:02:56.2]}
5... Nc6 {[%clk 0:02:59.5]} 6. b3 {[%clk 0:02:51.6]} 6... Be7 {[%clk 0:02:56.3]}
7. cxd5 {[%clk 0:02:51.2]} 7... Nxd5 {[%clk 0:02:53.9]} 8. Bb2 {[%clk
0:02:49.9]} 8... O-O {[%clk 0:02:54.1]} 9. d3 {[%clk 0:02:46]} 9... b6 {[%clk
0:02:51.3]} 10. Nbd2 {[%clk 0:02:41.2]} 10... Bb7 {[%clk 0:02:51.2]} 11. a3
{[%clk 0:02:40.3]} 11... Bf6 {[%clk 0:02:50.8]} 12. Qc2 {[%clk 0:02:38.6]} 12...
Rc8 {[%clk 0:02:40.4]} 13. Rac1 {[%clk 0:02:35.3]} 13... Nd4 {[%clk 0:02:36.1]}
14. Nxd4 {[%clk 0:02:18.3]} 14... cxd4 {[%clk 0:02:36.7]} 15. Qb1 {[%clk
0:02:12.6]} 15... Rxc1 {[%clk 0:02:15.5]} 16. Rxc1 {[%clk 0:02:06.7]} 16... Bg5
{[%clk 0:02:06.9]} 17. Rc2 {[%clk 0:01:58.8]} 17... Bxd2 {[%clk 0:01:59.4]} 18.
Rxd2 {[%clk 0:01:58.6]} 18... Nc3 {[%clk 0:01:51.5]} 19. Bxc3 {[%clk 0:01:20.6]}
19... dxc3 {[%clk 0:01:52.4]} 20. Rc2 {[%clk 0:01:21]} 20... Bxg2 {[%clk
0:01:52.6]} 21. Kxg2 {[%clk 0:01:21.2]} 21... Qd4 {[%clk 0:01:52.9]} 22. Qc1
{[%clk 0:01:19.3]} 22... Rc8 {[%clk 0:01:52.5]} 23. b4 {[%clk 0:01:12]} 23...
Qd5+ {[%clk 0:01:36.8]} 24. Kg1 {[%clk 0:01:10]} 24... Qb3 {[%clk 0:01:37]} 25.
h4 {[%clk 0:01:04.6]} 25... h6 {[%clk 0:01:31.2]} 26. Kf1 {[%clk 0:01:01.9]}
26... Qd5 {[%clk 0:01:17.2]} 27. Kg1 {[%clk 0:01:01.3]} 27... Qc6 {[%clk
0:01:12.8]} 28. Qf4 {[%clk 0:00:51]} 28... Qa4 {[%clk 0:01:08.5]} 29. Qc1 {[%clk
0:00:50.7]} 29... Qb3 {[%clk 0:01:08]} 30. Kf1 {[%clk 0:00:50.9]} 30... Kh7
{[%clk 0:01:05.9]} 31. Kg1 {[%clk 0:00:50.4]} 31... Rc6 {[%clk 0:01:04.4]} 32.
Kf1 {[%clk 0:00:50.4]} 32... Qd5 {[%clk 0:01:04]} 33. Kg1 {[%clk 0:00:50.3]}
33... Qb3 {[%clk 0:01:00.4]} 34. Kf1 {[%clk 0:00:49.9]} 34... g6 {[%clk
0:00:55.2]} 35. Kg1 {[%clk 0:00:50]} 35... Kg7 {[%clk 0:00:55.3]} 36. Kh2 {[%clk
0:00:48.6]} 36... Rc7 {[%clk 0:00:54.1]} 37. Kg1 {[%clk 0:00:47.6]} 37... Kh7
{[%clk 0:00:53.4]} 38. Kh1 {[%clk 0:00:48]} 38... Qd5+ {[%clk 0:00:53.1]} 39.
Kg1 {[%clk 0:00:48.1]} 39... Qc6 {[%clk 0:00:49.3]} 40. Qf4 {[%clk 0:00:47.4]}
40... Kg7 {[%clk 0:00:41.9]} 41. Qd4+ {[%clk 0:00:42.7]} 41... f6 {[%clk
0:00:37.3]} 42. Kh2 {[%clk 0:00:38.6]} 42... e5 {[%clk 0:00:35.8]} 43. Qe3
{[%clk 0:00:32.4]} 43... Qa4 {[%clk 0:00:34.3]} 44. Qc1 {[%clk 0:00:32.5]} 44...
Qb3 {[%clk 0:00:34.1]} 45. Kg1 {[%clk 0:00:32.7]} 45... a6 {[%clk 0:00:28.5]}
46. Kh2 {[%clk 0:00:31]} 46... Rc6 {[%clk 0:00:24.1]} 47. Kg1 {[%clk 0:00:30.7]}
47... Rc8 {[%clk 0:00:24.4]} 48. Kh2 {[%clk 0:00:30.8]} 48... Kh7 {[%clk
0:00:24.9]} 49. Kg1 {[%clk 0:00:30.9]} 49... Rc7 {[%clk 0:00:23.6]} 50. Kh2
{[%clk 0:00:29.4]} 50... Rc6 {[%clk 0:00:24.1]} 51. Kg1 {[%clk 0:00:29.6]} 51...
Kg7 {[%clk 0:00:20.3]} 52. Kh2 {[%clk 0:00:29.9]} 52... Rc8 {[%clk 0:00:20.8]}
53. Kg1 {[%clk 0:00:30.1]} 53... g5 {[%clk 0:00:21.5]} 54. hxg5 {[%clk
0:00:25.2]} 54... hxg5 {[%clk 0:00:22.4]} 55. f3 {[%clk 0:00:20]} 55... Qd5
{[%clk 0:00:19.4]} 56. Rxc3 {[%clk 0:00:18.7]} 56... Qd4+ {[%clk 0:00:19.6]} 57.
Kg2 {[%clk 0:00:16.6]} 57... Qxc3 {[%clk 0:00:18.7]} 58. Qe3 {[%clk 0:00:14.5]}
58... Qd4 {[%clk 0:00:17.6]} 59. Qd2 {[%clk 0:00:14.7]} 59... Rc3 {[%clk
0:00:16.9]} 60. Qd1 {[%clk 0:00:11.6]} 60... Qe3 {[%clk 0:00:15.5]} 61. Kf1
{[%clk 0:00:09.8]} 61... Rc1 {[%clk 0:00:15.3]} 0-1